fUST/lending_fUST_20240525
["ID","MTS","AMOUNT","RATE_DAILY","PERIOD"]
[327871133,1716568240128,-500.0,0.00024657,2]
[327871134,1716568240138,-500.0,0.00024657,2]
[327871135,1716568240148,-500.0,0.00024657,2]
[327871136,1716568240157,-500.0,0.00024657,2]
[327871137,1716568240167,-759.44,0.00024657,2]
[327871138,1716568240177,-500.0,0.00024657,2]
[327871139,1716568240186,-500.0,0.00024657,2]
[327871140,1716568240196,-533.91,0.00024657,2]
[327871141,1716568240206,-500.0,0.00024657,2]
[327871142,1716568240215,-500.0,0.00024657,2]
[327871143,1716568240225,-500.0,0.00024657,2]
[327871144,1716568240235,-500.0,0.00024657,2]
[327871145,1716568240244,-647.29,0.00024657,2]
[327871146,1716568240253,-500.0,0.00024657,2]
[327871147,1716568240263,-500.0,0.00024657,2]
[327871148,1716568240272,-500.0,0.00024657,2]
[327871149,1716568240281,-500.0,0.00024657,2]
[327871150,1716568240290,-500.0,0.00024657,2]
[327871151,1716568240299,-500.0,0.00024657,2]
[327871152,1716568240309,-500.0,0.00024657,2]
[327871153,1716568240318,-500.0,0.00024657,2]
[327871154,1716568240327,-602.44,0.00024657,2]
[327871155,1716568240338,-500.0,0.00024657,2]
[327871156,1716568240347,-500.0,0.00024657,2]
[327871157,1716568240357,-500.0,0.00024657,2]
[327871158,1716568240367,-500.0,0.00024657,2]
[327871159,1716568240378,-500.0,0.00024657,2]
[327871160,1716568240387,-500.0,0.00024657,2]
[327871161,1716568240396,-500.0,0.00024657,2]
[327871162,1716568240406,-500.0,0.00024657,2]
[327871163,1716568240415,-500.0,0.00024657,2]
[327871164,1716568240424,-500.0,0.00024657,2]
[327871165,1716568240434,-500.0,0.00024657,2]
[327871166,1716568240443,-2767.02,0.00024657,2]
[327871167,1716568240453,-500.0,0.00024657,2]
[327871168,1716568240462,-500.0,0.00024657,2]
[327871169,1716568240471,-880.44,0.00024657,2]
[327871170,1716568240481,-1824.81,0.00024657,2]
[327871171,1716568240501,-500.0,0.00024657,2]
[327871172,1716568240511,-84.93535202,0.00024657,2]
[327871173,1716568240528,-415.06464798,0.00024657,2]
[327871174,1716568240539,-210.38251747,0.00024657,2]
[327871175,1716568240551,-289.61748253,0.00024657,2]
[327871176,1716568240561,-500.0,0.00024657,2]
[327871177,1716568240571,-500.0,0.00024657,2]
[327871178,1716568240581,-500.0,0.00024657,2]
[327871179,1716568240590,-656.46,0.00024657,2]
[327871180,1716568240600,-500.0,0.00024657,2]
[327871181,1716568240609,-500.0,0.00024657,2]
[327871182,1716568240620,-862.89,0.00024657,2]
[327871183,1716568240629,-500.0,0.00024657,2]
[327871184,1716568240639,-500.0,0.00024657,2]
[327871185,1716568240649,-500.0,0.00024657,2]
[327871186,1716568240658,-500.0,0.00024657,2]
[327871187,1716568240667,-500.0,0.00024657,2]
[327871188,1716568240678,-500.0,0.00024657,2]
[327871189,1716568240687,-500.0,0.00024657,2]
[327871190,1716568240697,-500.0,0.00024657,2]
[327871191,1716568240706,-500.0,0.00024657,2]
[327871192,1716568240716,-698.26,0.00024657,2]
[327871193,1716568240726,-35299.97,0.00024657,2]
[327871194,1716568240735,-35299.97,0.00024657,3]
[327871195,1716568240744,-35299.97,0.00024657,4]
[327871196,1716568240754,-35299.97,0.00024657,5]
[327871197,1716568240763,-35299.97,0.00024657,6]
[327871198,1716568240773,-569.15,0.00024657,2]
[327871199,1716568240782,-1670.0,0.00024657,2]
[327871200,1716568240792,-500.0,0.00024657,2]
[327871201,1716568240801,-500.0,0.00024657,2]
[327871202,1716568240810,-500.0,0.00024657,2]
[327871203,1716568240820,-250.0,0.00024657,2]
[327871204,1716568240829,-500.0,0.00024657,2]
[327871205,1716568240841,-500.0,0.00024657,2]
[327871206,1716568240850,-500.0,0.00024657,2]
[327871207,1716568240859,-500.0,0.00024657,2]
[327871208,1716568240868,-1633.23,0.00024657,2]
[327871209,1716568240881,-500.0,0.00024657,2]
[327871210,1716568240891,-709.0,0.00024657,2]
[327871211,1716568240900,-590.21,0.00024657,2]
[327871212,1716568240909,-500.0,0.00024657,2]
[327871213,1716568240922,-602.32,0.00024657,2]
[327871214,1716568240932,-1018.95,0.00024657,2]
[327871215,1716568240942,-500.0,0.00024657,2]
[327871216,1716568240952,-500.0,0.00024657,3]
[327871217,1716568240970,-500.0,0.00024657,3]
[327871218,1716568240985,-500.0,0.00024657,3]
[327871219,1716568240999,-500.0,0.00024657,3]
[327871220,1716568241013,-500.0,0.00024657,3]
[327871221,1716568241026,-500.0,0.00024657,3]
[327871222,1716568241039,-719.94,0.00024657,2]
[327871223,1716568241050,-500.0,0.00024657,2]
[327871224,1716568241062,-601.86,0.00024657,2]
[327871225,1716568241076,-405.61601921,0.00024657,2]
[327871226,1716568241088,-500.0,0.00024657,2]
[327871227,1716568241101,-500.0,0.00024657,2]
[327871228,1716568241113,-5206.65,0.00024657,2]
[327871229,1716568241127,-500.0,0.00024657,2]
[327871230,1716568241140,-500.0,0.00024657,2]
[327871231,1716568241152,-5609.35,0.00024657,2]
[327871232,1716568241164,-1810.43,0.00024657,2]
[327871233,1716568241177,-500.0,0.00024657,2]
[327871234,1716568241191,-500.0,0.00024657,2]
[327871235,1716568241204,-500.0,0.00024657,2]
[327871236,1716568241217,-500.0,0.00024657,2]
[327871237,1716568241229,-500.0,0.00024657,2]
[327871238,1716568241240,-697.67,0.00024657,2]
[327871239,1716568241252,-585.9,0.00024657,2]
[327871240,1716568241264,-4612.72,0.00024657,2]
[327871241,1716568241276,-500.0,0.00024657,2]
[327871242,1716568241288,-500.0,0.00024657,2]
[327871243,1716568241301,-500.0,0.00024657,2]
[327871244,1716568241314,-500.0,0.00024657,2]
[327871245,1716568241329,-88888.0,0.00024731,3]
[327871246,1716568241341,-35299.97,0.0002483,7]
[327871247,1716568241352,-35299.97,0.0002483,8]
[327871248,1716568241363,-35299.97,0.0002483,9]
[327871249,1716568241376,-500.0,0.0002483,3]
[327871250,1716568241388,-500.0,0.0002483,3]
[327871251,1716568241400,-35299.97,0.0002493,10]
[327871252,1716568241410,-500.0,0.0002493,3]
[327871253,1716568241423,-500.0,0.00024931,3]
[327871254,1716568241435,-500.0,0.00024931,3]
[327871255,1716568241446,-500.0,0.00024931,3]
[327871256,1716568241458,-500.0,0.00024931,3]
[327871257,1716568241470,-500.0,0.00024931,3]
[327871258,1716568241482,-500.0,0.00024931,3]
[327871259,1716568241494,-500.0,0.00024931,3]
[327871260,1716568241506,-500.0,0.00024931,3]
[327871261,1716568241518,-500.0,0.00024931,3]
[327871262,1716568241530,-500.0,0.00024931,3]
[327871263,1716568241541,-500.0,0.00024931,3]
[327871264,1716568241551,-404.30584224,0.00024931,3]
[327871265,1716568241561,-500.0,0.00024931,3]
[327871266,1716568241571,-500.0,0.00024931,3]
[327871267,1716568241581,-500.0,0.00024931,3]
[327871268,1716568241592,-500.0,0.00024931,3]
[327871269,1716568241604,-500.0,0.00024931,3]
[327871270,1716568241615,-500.0,0.00024931,3]
[327871271,1716568241627,-500.0,0.00024931,3]
[327871272,1716568241644,-500.0,0.00024931,3]
[327871273,1716568241654,-500.0,0.00024931,3]
[327871274,1716568241665,-500.0,0.00024931,3]
[327871275,1716568241675,-500.0,0.00024931,3]
[327871276,1716568241687,-500.0,0.00024931,3]
[327871277,1716568241700,-453.33980402,0.00024931,3]
[327871278,1716568241711,-500.0,0.00024931,3]
[327871279,1716568241722,-500.0,0.00024931,2]
[327871280,1716568241732,-500.0,0.00024931,3]
[327871281,1716568241743,-500.0,0.00024931,3]
[327871282,1716568241754,-500.0,0.00024931,3]
[327871283,1716568241768,-500.0,0.00024931,3]
[327871284,1716568241779,-500.0,0.00024931,3]
[327871285,1716568241789,-500.0,0.00024931,3]
[327871286,1716568241801,-500.0,0.00024931,3]
[327871287,1716568241813,-500.0,0.00024931,3]
[327871288,1716568241824,-500.0,0.00024931,3]
[327871289,1716568241842,-759.44,0.00024931,3]
[327871290,1716568241854,-500.0,0.00024931,3]
[327871291,1716568241865,-533.91,0.00024931,3]
[327871292,1716568241878,-500.0,0.00024931,3]
[327871293,1716568241890,-597.67,0.00024931,3]
[327871294,1716568241902,-500.0,0.00024931,3]
[327871295,1716568241914,-647.29,0.00024931,3]
[327871296,1716568241926,-500.0,0.00024931,3]
[327871297,1716568241937,-500.0,0.00024931,3]
[327871298,1716568241948,-500.0,0.00024931,3]
[327871299,1716568241959,-500.0,0.00024931,3]
[327871300,1716568241969,-402.35400339,0.00024931,3]
[327871301,1716568241981,-500.0,0.00024931,3]
[327871302,1716568241992,-602.44,0.00024931,3]
[327871303,1716568242002,-500.0,0.00024931,3]
[327871304,1716568242013,-500.0,0.00024931,3]
[327871305,1716568242023,-500.0,0.00024931,3]
[327871306,1716568242034,-500.0,0.00024931,3]
[327871307,1716568242046,-500.0,0.00024931,3]
[327871308,1716568242056,-500.0,0.00024931,3]
[327871309,1716568242068,-500.0,0.00024931,3]
[327871310,1716568242078,-500.0,0.00024931,3]
[327871311,1716568242089,-2767.02,0.00024931,3]
[327871312,1716568242100,-500.0,0.00024931,3]
[327871313,1716568242111,-500.0,0.00024931,3]
[327871314,1716568242121,-880.44,0.00024931,3]
[327871315,1716568242131,-1824.81,0.00024931,2]
[327871316,1716568242142,-500.0,0.00024931,3]
[327871317,1716568242153,-500.0,0.00024931,3]
[327871318,1716568242163,-500.0,0.00024931,3]
[327871319,1716568242174,-500.0,0.00024931,3]
[327871320,1716568242184,-500.0,0.00024931,3]
[327871321,1716568242195,-656.46,0.00024931,3]
[327871322,1716568242207,-500.0,0.00024931,3]
[327871323,1716568242218,-440.70151592,0.00024931,3]
[327871324,1716568242229,-862.89,0.00024931,3]
[327871325,1716568242240,-500.0,0.00024931,3]
[327871326,1716568242255,-500.0,0.00024931,3]
[327871327,1716568242266,-500.0,0.00024931,3]
[327871328,1716568242277,-500.0,0.00024931,3]
[327871329,1716568242288,-500.0,0.00024931,3]
[327871330,1716568242299,-500.0,0.00024931,3]
[327871331,1716568242310,-500.0,0.00024931,3]
[327871332,1716568242321,-698.26,0.00024931,3]
[327871333,1716568242332,-569.15,0.00024931,3]
[327871334,1716568242343,-1670.0,0.00024931,3]
[327871335,1716568242354,-500.0,0.00024931,3]
[327871336,1716568242365,-500.0,0.00024931,3]
[327871337,1716568242377,-197.55749243,0.00024931,3]
[327871338,1716568242387,-250.0,0.00024931,3]
[327871339,1716568242398,-500.0,0.00024931,3]
[327871340,1716568242409,-1633.23,0.00024931,3]
[327871341,1716568242420,-500.0,0.00024931,3]
[327871342,1716568242431,-709.0,0.00024931,3]
[327871343,1716568242442,-590.21,0.00024931,3]
[327871344,1716568242453,-500.0,0.00024931,3]
[327871345,1716568242463,-602.32,0.00024931,3]
[327871346,1716568242475,-1018.95,0.00024931,3]
[327871347,1716568242485,-500.0,0.00024931,3]
[327871348,1716568242496,-719.94,0.00024931,3]
[327871349,1716568242507,-500.0,0.00024931,3]
[327871350,1716568242519,-601.86,0.00024931,3]
[327871351,1716568242530,-500.0,0.00024931,3]
[327871352,1716568242540,-5206.65,0.00024931,3]
[327871353,1716568242552,-500.0,0.00024931,3]
[327871354,1716568242563,-500.0,0.00024931,3]
[327871355,1716568242575,-1810.43,0.00024931,3]
[327871356,1716568242586,-5609.35,0.00024931,3]
[327871357,1716568242596,-500.0,0.00024931,3]
[327871358,1716568242607,-500.0,0.00024931,3]
[327871359,1716568242617,-500.0,0.00024931,3]
[327871360,1716568242627,-500.0,0.00024931,3]
[327871361,1716568242637,-697.67,0.00024931,3]
[327871362,1716568242646,-585.9,0.00024931,3]
[327871363,1716568242656,-4612.72,0.00024931,3]
[327871364,1716568242665,-500.0,0.00024931,3]
[327871365,1716568242675,-500.0,0.00024931,3]
[327871366,1716568242853,-500.0,0.00024931,3]
[327871367,1716568242867,-500.0,0.00024931,3]
[327871368,1716568242879,-35299.97,0.00024999,11]
[327871369,1716568242889,-500.0,0.00024999,3]
[327871370,1716568242898,-401.04849883,0.00025,2]
[327871371,1716568242908,-10772.1518586,0.00025,2]
[327871372,1716568242919,-151.0,0.00025009,5]
[327871373,1716568242928,-35299.97,0.00025204,12]
[327871374,1716568242938,-500.0,0.00025204,3]
[327871375,1716568242947,-500.0,0.00025205,4]
[327871376,1716568242956,-500.0,0.00025205,4]
[327871377,1716568242965,-500.0,0.00025205,4]
[327871378,1716568242975,-500.0,0.00025205,4]
[327871379,1716568242984,-500.0,0.00025205,4]
[327871380,1716568242993,-500.0,0.00025205,4]
[327871381,1716568243002,-500.0,0.00025205,4]
[327871382,1716568243011,-500.0,0.00025205,4]
[327871383,1716568243020,-500.0,0.00025205,4]
[327871384,1716568243030,-500.0,0.00025205,4]
[327871385,1716568243040,-500.0,0.00025205,4]
[327871386,1716568243049,-500.0,0.00025205,4]
[327871387,1716568243058,-500.0,0.00025205,4]
[327871388,1716568243067,-500.0,0.00025205,4]
[327871389,1716568243076,-500.0,0.00025205,4]
[327871390,1716568243086,-500.0,0.00025205,4]
[327871391,1716568243095,-500.0,0.00025205,4]
[327871392,1716568243105,-516.27604082,0.00025205,2]
[327871395,1716568243114,-500.0,0.00025205,4]
[327871398,1716568243123,-500.0,0.00025205,4]
[327871401,1716568243132,-500.0,0.00025205,4]
[327871405,1716568243143,-500.0,0.00025205,4]
[327871409,1716568243153,-500.0,0.00025205,4]
[327871413,1716568243162,-500.0,0.00025205,4]
[327871417,1716568243171,-759.44,0.00025205,4]
[327871421,1716568243181,-500.0,0.00025205,4]
[327871425,1716568243190,-533.91,0.00025205,4]
[327871429,1716568243200,-500.0,0.00025205,4]
[327871433,1716568243209,-500.0,0.00025205,4]
[327871437,1716568243219,-647.29,0.00025205,4]
[327871440,1716568243228,-500.0,0.00025205,4]
[327871444,1716568243238,-500.0,0.00025205,4]
[327871447,1716568243247,-500.0,0.00025205,4]
[327871450,1716568243256,-602.44,0.00025205,4]
[327871453,1716568243265,-500.0,0.00025205,4]
[327871456,1716568243274,-500.0,0.00025205,4]
[327871460,1716568243284,-500.0,0.00025205,4]
[327871463,1716568243293,-500.0,0.00025205,4]
[327871466,1716568243303,-500.0,0.00025205,4]
[327871469,1716568243312,-500.0,0.00025205,4]
[327871472,1716568243321,-2767.02,0.00025205,4]
[327871475,1716568243331,-500.0,0.00025205,4]
[327871477,1716568243340,-500.0,0.00025205,4]
[327871480,1716568243349,-880.44,0.00025205,4]
[327871483,1716568243358,-1824.81,0.00025205,2]
[327871485,1716568243367,-500.0,0.00025205,4]
[327871487,1716568243377,-500.0,0.00025205,4]
[327871489,1716568243386,-500.0,0.00025205,4]
[327871491,1716568243395,-500.0,0.00025205,4]
[327871493,1716568243405,-500.0,0.00025205,4]
[327871495,1716568243414,-656.46,0.00025205,4]
[327871497,1716568243423,-500.0,0.00025205,4]
[327871499,1716568243432,-862.89,0.00025205,4]
[327871501,1716568243441,-500.0,0.00025205,4]
[327871503,1716568243451,-500.0,0.00025205,4]
[327871505,1716568243460,-221.19,0.00025205,4]
[327871507,1716568243469,-500.0,0.00025205,4]
[327871509,1716568243478,-500.0,0.00025205,4]
[327871511,1716568243487,-500.0,0.00025205,4]
[327871513,1716568243496,-698.26,0.00025205,4]
[327871515,1716568243506,-569.15,0.00025205,4]
[327871517,1716568243515,-1670.0,0.00025205,4]
[327871519,1716568243524,-324.04,0.00025205,4]
[327871521,1716568243533,-250.0,0.00025205,4]
[327871523,1716568243543,-500.0,0.00025205,4]
[327871525,1716568243552,-1633.23,0.00025205,4]
[327871527,1716568243562,-500.0,0.00025205,4]
[327871529,1716568243571,-709.0,0.00025205,4]
[327871531,1716568243580,-590.21,0.00025205,4]
[327871533,1716568243589,-500.0,0.00025205,4]
[327871535,1716568243599,-602.32,0.00025205,4]
[327871537,1716568243608,-1018.95,0.00025205,4]
[327871539,1716568243618,-719.94,0.00025205,4]
[327871541,1716568243629,-500.0,0.00025205,4]
[327871542,1716568243638,-601.86,0.00025205,4]
[327871543,1716568243647,-500.0,0.00025205,4]
[327871544,1716568243656,-5206.65,0.00025205,4]
[327871545,1716568243666,-500.0,0.00025205,4]
[327871546,1716568243675,-500.0,0.00025205,4]
[327871547,1716568243684,-1810.43,0.00025205,4]
[327871548,1716568243694,-5609.35,0.00025205,4]
[327871549,1716568243704,-500.0,0.00025205,4]
[327871550,1716568243714,-500.0,0.00025205,4]
[327871551,1716568243724,-500.0,0.00025205,4]
[327871552,1716568243733,-500.0,0.00025205,4]
[327871553,1716568243743,-697.67,0.00025205,4]
[327871554,1716568243752,-585.9,0.00025205,4]
[327871555,1716568243762,-4612.72,0.00025205,4]
[327871556,1716568243771,-500.0,0.00025205,4]
[327871559,1716568243782,-500.0,0.00025205,4]
[327871562,1716568243792,-500.0,0.00025205,4]
[327871564,1716568243801,-500.0,0.00025205,4]
[327871566,1716568243811,-35299.97,0.00025478,13]
[327871569,1716568243820,-500.0,0.00025478,3]
[327871570,1716568243830,-500.0,0.00025479,5]
[327871572,1716568243843,-500.0,0.00025479,5]
[327871574,1716568243853,-500.0,0.00025479,5]
[327871576,1716568243862,-500.0,0.00025479,5]
[327871577,1716568243871,-500.0,0.00025479,5]
[327871579,1716568243883,-500.0,0.00025479,5]
[327871581,1716568243892,-500.0,0.00025479,5]
[327871583,1716568243901,-500.0,0.00025479,5]
[327871585,1716568243910,-500.0,0.00025479,5]
[327871588,1716568243931,-194.88120767,0.00025479,5]
[327871590,1716568243942,-427.79312952,0.00025479,5]
[327871592,1716568243953,-500.0,0.00025479,5]
[327871594,1716568243963,-500.0,0.00025479,5]
[327871596,1716568243973,-500.0,0.00025479,5]
[327871598,1716568243983,-500.0,0.00025479,5]
[327871600,1716568243992,-500.0,0.00025479,5]
[327871602,1716568244003,-500.0,0.00025479,5]
[327871603,1716568244014,-500.0,0.00025479,5]
[327871605,1716568244024,-500.0,0.00025479,5]
[327871607,1716568244034,-500.0,0.00025479,5]
[327871609,1716568244044,-759.44,0.00025479,5]
[327871611,1716568244054,-500.0,0.00025479,5]
[327871613,1716568244064,-533.91,0.00025479,5]
[327871615,1716568244075,-500.0,0.00025479,5]
[327871616,1716568244086,-647.29,0.00025479,5]
[327871618,1716568244096,-500.0,0.00025479,5]
[327871620,1716568244106,-500.0,0.00025479,5]
[327871621,1716568244116,-500.0,0.00025479,5]
[327871622,1716568244127,-602.44,0.00025479,5]
[327871623,1716568244137,-292.59626494,0.00025479,5]
[327871624,1716568244147,-500.0,0.00025479,5]
[327871625,1716568244157,-500.0,0.00025479,5]
[327871626,1716568244168,-500.0,0.00025479,5]
[327871627,1716568244178,-500.0,0.00025479,5]
[327871628,1716568244189,-500.0,0.00025479,5]
[327871629,1716568244199,-2767.02,0.00025479,5]
[327871630,1716568244209,-617.73,0.00025479,5]
[327871631,1716568244219,-500.0,0.00025479,5]
[327871632,1716568244231,-880.44,0.00025479,5]
[327871633,1716568244240,-1824.81,0.00025479,2]
[327871634,1716568244251,-500.0,0.00025479,5]
[327871635,1716568244260,-500.0,0.00025479,5]
[327871636,1716568244270,-500.0,0.00025479,5]
[327871637,1716568244280,-500.0,0.00025479,5]
[327871638,1716568244289,-626.15938359,0.00025479,5]
[327871639,1716568244299,-656.46,0.00025479,5]
[327871640,1716568244309,-500.0,0.00025479,5]
[327871641,1716568244318,-862.89,0.00025479,5]
[327871642,1716568244328,-500.0,0.00025479,5]
[327871643,1716568244338,-500.0,0.00025479,5]
[327871644,1716568244347,-500.0,0.00025479,5]
[327871645,1716568244357,-500.0,0.00025479,5]
[327871646,1716568244367,-500.0,0.00025479,5]
[327871647,1716568244377,-698.26,0.00025479,5]
[327871648,1716568244386,-569.15,0.00025479,5]
[327871649,1716568244396,-1670.0,0.00025479,5]
[327871650,1716568244405,-250.0,0.00025479,5]
[327871651,1716568244415,-500.0,0.00025479,5]
[327871652,1716568244425,-1633.23,0.00025479,5]
[327871653,1716568244434,-500.0,0.00025479,5]
[327871654,1716568244443,-709.0,0.00025479,5]
[327871655,1716568244453,-590.21,0.00025479,5]
[327871656,1716568244462,-367.27924875,0.00025479,5]
[327871657,1716568244472,-602.32,0.00025479,5]
[327871658,1716568244483,-1018.95,0.00025479,5]
[327871659,1716568244492,-719.94,0.00025479,5]
[327871660,1716568244502,-500.0,0.00025479,5]
[327871661,1716568244512,-601.86,0.00025479,5]
[327871662,1716568244521,-500.0,0.00025479,5]
[327871663,1716568244531,-5206.65,0.00025479,5]
[327871664,1716568244540,-366.66027768,0.00025479,5]
[327871665,1716568244550,-5609.35,0.00025479,5]
[327871666,1716568244560,-1810.43,0.00025479,5]
[327871667,1716568244570,-500.0,0.00025479,5]
[327871668,1716568244580,-500.0,0.00025479,5]
[327871669,1716568244589,-500.0,0.00025479,5]
[327871670,1716568244599,-500.0,0.00025479,5]
[327871671,1716568244608,-697.67,0.00025479,5]
[327871672,1716568244617,-585.9,0.00025479,5]
[327871673,1716568244627,-4612.72,0.00025479,5]
[327871674,1716568244636,-500.0,0.00025479,5]
[327871675,1716568244646,-500.0,0.00025479,5]
[327871676,1716568244656,-500.0,0.00025479,5]
[327871677,1716568244665,-151.0,0.0002555,5]
[327871678,1716568244674,-151.545,0.00025599,2]
[327871679,1716568244683,-496.0,0.00025599,2]
[327871680,1716568244689,-35299.97,0.00025752,14]
[327871681,1716568244699,-35299.97,0.00025752,15]
[327871682,1716568244708,-500.0,0.00025752,3]
[327871683,1716568244717,-417.62581018,0.00025753,6]
[327871684,1716568244727,-500.0,0.00025753,6]
[327871685,1716568244738,-500.0,0.00025753,6]
[327871686,1716568244748,-500.0,0.00025753,6]
[327871687,1716568244758,-500.0,0.00025753,6]
[327871688,1716568244769,-500.0,0.00025753,6]
[327871689,1716568244778,-500.0,0.00025753,6]
[327871690,1716568244788,-500.0,0.00025753,6]
[327871691,1716568244798,-500.0,0.00025753,6]
[327871692,1716568244808,-500.0,0.00025753,6]
[327871693,1716568244818,-500.0,0.00025753,6]
[327871694,1716568244828,-500.0,0.00025753,6]
[327871695,1716568244842,-500.0,0.00025753,6]
[327871696,1716568244852,-500.0,0.00025753,6]
[327871697,1716568244862,-500.0,0.00025753,6]
[327871698,1716568244872,-759.44,0.00025753,6]
[327871699,1716568244886,-500.0,0.00025753,6]
[327871700,1716568244896,-533.91,0.00025753,6]
[327871701,1716568244906,-500.0,0.00025753,6]
[327871702,1716568244919,-647.29,0.00025753,6]
[327871703,1716568244929,-500.0,0.00025753,6]
[327871704,1716568244939,-500.0,0.00025753,6]
[327871705,1716568244951,-500.0,0.00025753,6]
[327871706,1716568244961,-602.44,0.00025753,6]
[327871707,1716568244972,-500.0,0.00025753,6]
[327871708,1716568244982,-500.0,0.00025753,6]
[327871709,1716568244992,-258.35086456,0.00025753,6]
[327871710,1716568245002,-500.0,0.00025753,6]
[327871711,1716568245011,-500.0,0.00025753,6]
[327871712,1716568245021,-2767.02,0.00025753,6]
[327871713,1716568245031,-500.0,0.00025753,6]
[327871714,1716568245041,-880.44,0.00025753,6]
[327871715,1716568245051,-1824.81,0.00025753,2]
[327871716,1716568245061,-500.0,0.00025753,6]
[327871717,1716568245070,-500.0,0.00025753,6]
[327871718,1716568245080,-500.0,0.00025753,6]
[327871719,1716568245091,-500.0,0.00025753,6]
[327871720,1716568245101,-656.46,0.00025753,6]
[327871721,1716568245111,-500.0,0.00025753,6]
[327871722,1716568245120,-862.89,0.00025753,6]
[327871723,1716568245131,-500.0,0.00025753,6]
[327871724,1716568245141,-500.0,0.00025753,6]
[327871725,1716568245151,-500.0,0.00025753,6]
[327871726,1716568245160,-500.0,0.00025753,6]
[327871727,1716568245170,-374.07,0.00025753,6]
[327871728,1716568245181,-698.26,0.00025753,6]
[327871729,1716568245191,-569.15,0.00025753,6]
[327871730,1716568245200,-1670.0,0.00025753,6]
[327871731,1716568245210,-250.0,0.00025753,6]
[327871732,1716568245220,-500.0,0.00025753,6]
[327871733,1716568245231,-1633.23,0.00025753,6]
[327871734,1716568245241,-500.0,0.00025753,6]
[327871735,1716568245251,-709.0,0.00025753,6]
[327871736,1716568245260,-590.21,0.00025753,6]
[327871737,1716568245270,-602.32,0.00025753,6]
[327871738,1716568245280,-1018.95,0.00025753,6]
[327871739,1716568245290,-719.94,0.00025753,6]
[327871740,1716568245300,-500.0,0.00025753,6]
[327871741,1716568245310,-601.86,0.00025753,6]
[327871742,1716568245319,-500.0,0.00025753,6]
[327871743,1716568245329,-5206.65,0.00025753,6]
[327871744,1716568245339,-1810.43,0.00025753,6]
[327871745,1716568245348,-5609.35,0.00025753,6]
[327871746,1716568245359,-500.0,0.00025753,6]
[327871747,1716568245368,-500.0,0.00025753,6]
[327871748,1716568245378,-500.0,0.00025753,6]
[327871749,1716568245387,-500.0,0.00025753,6]
[327871750,1716568245399,-697.67,0.00025753,6]
[327871751,1716568245409,-585.9,0.00025753,6]
[327871752,1716568245418,-4612.72,0.00025753,6]
[327871753,1716568245430,-396.70966897,0.00025753,6]
[327871754,1716568245440,-500.0,0.00025753,6]
[327871755,1716568245450,-150.83408251,0.00026009,2]
[327871756,1716568245459,-35299.97,0.00026026,16]
[327871757,1716568245469,-500.0,0.00026026,3]